bitfinex/quotes_ETHUSD_20241105
["timestamp","ask_amount","ask_price","bid_price","bid_amount"]
[1730798557471,12.63170283,2445.3,2445.2,4.64e-06]
[1730798557916,9.6271512,2445.3,2445.2,4.64e-06]
[1730798558087,12.63138875,2445.3,2445.2,4.64e-06]
[1730798558786,10.97816618,2445.3,2445.2,4.64e-06]
[1730798559115,10.97816618,2445.3,2444.0,0.0599964]
[1730798559116,4.09098,2444.4,2444.3,0.7628]
[1730798559320,7.09098,2444.4,2444.3,0.7628]
[1730798559677,4.09134,2444.2,2444.1,0.7628]
[1730798561074,4.09134,2444.2,2444.1,0.86611822]
[1730798561579,7.09134,2444.2,2444.1,0.86611822]
[1730798562107,8.618687,2444.2,2444.1,0.86611822]
[1730798562360,8.618687,2444.2,2444.1,0.10331822]
[1730798563326,9.203787,2444.2,2444.1,0.10331822]
[1730798565632,8.618687,2444.2,2444.1,0.10331822]
[1730798565845,7.09148,2444.1,2444.0,4.62e-06]
[1730798566145,8.41294231,2444.1,2444.0,4.62e-06]
[1730798566302,7.09148,2444.1,2444.0,4.62e-06]
[1730798566939,7.09148,2444.1,2444.0,0.76230462]
[1730798570528,4.09148,2444.1,2444.0,0.76230462]
[1730798573475,4.09134,2444.2,2444.0,0.76230462]
[1730798573686,4.09148,2444.1,2444.0,0.76230462]
[1730798573876,8.18276,2444.2,2444.0,0.76230462]
[1730798574178,4.09122,2444.3,2444.0,0.76230462]
[1730798574399,4.09122,2444.3,2444.1,0.778]
[1730798574880,8.18224,2444.4,2444.1,0.778]
[1730798575240,4.0911,2444.4,2444.1,0.778]
[1730798575473,4.09074,2444.6,2444.2,0.778]
[1730798575760,4.09074,2444.6,2444.4,0.7559]
[1730798575761,4.09093,2444.5,2444.4,0.7559]
[1730798580376,4.09074,2444.6,2444.4,0.7559]
[1730798580558,8.18152,2444.6,2444.4,0.7559]
[1730798580759,4.09044,2444.8,2444.4,0.7559]
[1730798580961,4.09056,2444.7,2444.4,0.7559]
[1730798581168,4.09056,2444.7,2444.5,0.8016]
[1730798581347,4.09044,2444.8,2444.5,0.8016]
[1730798581555,4.09049,2444.7,2444.5,0.8016]
[1730798582389,4.09044,2444.8,2444.5,0.8016]
[1730798582607,4.09048,2444.7,2444.5,0.8016]
[1730798584843,8.18089,2444.8,2444.5,0.8016]
[1730798585158,4.0905,2444.7,2444.5,0.8016]
[1730798588740,4.08983,2445.1,2444.5,0.8016]
[1730798588741,4.09064,2444.6,2444.5,0.8016]
[1730798595547,4.09131,2444.2,2444.1,0.8306]
[1730798600154,4.09131,2444.2,2444.0,0.81170462]
[1730798600155,4.09148,2444.1,2444.0,0.81170462]
[1730798601191,4.09148,2444.1,2444.0,4.62e-06]
[1730798605265,7.67658,2444.1,2444.0,4.62e-06]
[1730798605470,8.853369,2444.1,2444.0,4.62e-06]
[1730798612771,10.20450232,2444.1,2444.0,4.62e-06]
[1730798614278,10.75450232,2444.1,2444.0,4.62e-06]
[1730798614713,12.89618512,2444.1,2444.0,4.62e-06]
[1730798615047,10.75450232,2444.1,2444.0,4.62e-06]
[1730798615225,18.32374653,2444.1,2444.0,4.62e-06]
[1730798615807,15.75450232,2444.1,2444.0,4.62e-06]
[1730798617020,10.75450232,2444.1,2444.0,4.62e-06]
[1730798619266,12.89385635,2444.1,2444.0,4.62e-06]
[1730798619441,10.75450232,2444.1,2444.0,4.62e-06]
[1730798619851,10.20450232,2444.1,2444.0,4.62e-06]
[1730798623735,9.61940232,2444.1,2444.0,4.62e-06]
[1730798624043,9.403369,2444.1,2444.0,4.62e-06]
[1730798624261,10.20450232,2444.1,2444.0,4.62e-06]
[1730798627589,10.75450232,2444.1,2444.0,4.62e-06]
[1730798627769,12.89220033,2444.1,2444.0,4.62e-06]
[1730798628081,10.75450232,2444.1,2444.0,4.62e-06]
[1730798628861,12.892191,2444.1,2444.0,4.62e-06]
[1730798629084,10.75450232,2444.1,2444.0,4.62e-06]
[1730798629790,12.89205493,2444.1,2444.0,4.62e-06]
[1730798630144,10.75450232,2444.1,2444.0,4.62e-06]
[1730798630344,19.24318708,2444.1,2444.0,4.62e-06]
[1730798630542,17.61173982,2444.1,2444.0,4.62e-06]
[1730798630883,19.36027597,2444.1,2444.0,4.62e-06]
[1730798631245,20.71140929,2444.1,2444.0,4.62e-06]
[1730798631771,18.14606874,2444.1,2444.0,4.62e-06]
[1730798631973,12.75450232,2444.1,2444.0,4.62e-06]
[1730798633268,15.75450232,2444.1,2444.0,4.62e-06]
[1730798633473,17.54450858,2444.1,2444.0,4.62e-06]
[1730798636361,20.5378375,2444.1,2444.0,4.62e-06]
[1730798636557,23.60888356,2444.1,2444.0,4.62e-06]
[1730798637079,23.10277938,2444.1,2444.0,4.62e-06]
[1730798638345,20.5378375,2444.1,2444.0,4.62e-06]
[1730798639292,18.0788375,2444.1,2444.0,4.62e-06]
[1730798639585,20.5378375,2444.1,2444.0,4.62e-06]
[1730798639751,20.64377938,2444.1,2444.0,4.62e-06]
[1730798640094,20.64503222,2444.1,2444.0,4.62e-06]
[1730798640390,18.0788375,2444.1,2444.0,4.62e-06]
[1730798640548,17.54450858,2444.1,2444.0,4.62e-06]
[1730798641964,20.1107033,2444.1,2444.0,4.62e-06]
[1730798642165,17.54450858,2444.1,2444.0,4.62e-06]
[1730798642688,20.1107033,2444.1,2444.0,4.62e-06]
[1730798644474,17.54450858,2444.1,2444.0,4.62e-06]
[1730798646497,20.54172658,2444.1,2444.0,4.62e-06]
[1730798647210,21.14676305,2444.1,2444.0,4.62e-06]
[1730798647409,20.60854505,2444.1,2444.0,4.62e-06]
[1730798647702,23.67897708,2444.1,2444.0,4.62e-06]
[1730798649529,27.21944085,2444.1,2444.0,4.62e-06]
[1730798649729,33.10605385,2444.1,2444.0,4.62e-06]
[1730798649931,24.07830127,2444.1,2444.0,4.62e-06]
[1730798650526,30.99557785,2444.1,2444.0,4.62e-06]
[1730798650844,29.76195405,2444.1,2444.0,4.62e-06]
[1730798650986,18.54885189,2444.1,2444.0,4.62e-06]
[1730798651193,17.61519878,2444.1,2444.0,4.62e-06]
[1730798653725,18.01452297,2444.1,2444.0,4.62e-06]
[1730798653935,14.4740592,2444.1,2444.0,4.62e-06]
[1730798654092,17.61519878,2444.1,2444.0,4.62e-06]
[1730798654287,21.16206593,2444.1,2444.0,4.62e-06]
[1730798655001,22.20249903,2444.1,2444.0,4.62e-06]
[1730798655207,10.78345958,2443.6,2443.5,4.62e-06]
[1730798655417,11.07192745,2443.6,2443.5,4.62e-06]
[1730798656090,14.07490373,2443.6,2443.5,4.62e-06]
[1730798656702,11.07192745,2443.6,2443.5,4.62e-06]
[1730798657328,14.07490373,2443.6,2443.5,4.62e-06]
[1730798658621,14.07565826,2443.6,2443.5,4.62e-06]
[1730798659697,11.07192745,2443.6,2443.5,4.62e-06]
[1730798660736,14.07594861,2443.6,2443.5,4.62e-06]
[1730798663224,14.07555715,2443.6,2443.5,4.62e-06]
[1730798665419,7.09299,2443.2,2443.1,0.8219]
[1730798665730,9.56511749,2443.2,2443.1,0.8219]
[1730798666332,8.44703349,2442.9,2442.8,0.0599964]
[1730798667660,10.5922747,2442.9,2442.8,0.0599964]
[1730798667967,10.59239925,2442.9,2442.8,0.0599964]
[1730798668467,11.14239925,2442.9,2442.8,6.4e-06]
[1730798668672,10.85840666,2442.9,2442.8,6.4e-06]
[1730798673229,11.63560666,2442.9,2442.8,6.4e-06]
[1730798673434,13.43305837,2442.9,2442.8,6.4e-06]
[1730798674552,11.5716852,2442.9,2442.8,6.4e-06]
[1730798676296,8.99703349,2442.9,2442.8,6.4e-06]
[1730798676478,8.44703349,2442.9,2442.8,6.4e-06]
[1730798677081,11.02138447,2442.9,2442.8,6.4e-06]
[1730798677285,8.44703349,2442.9,2442.8,6.4e-06]
[1730798677907,7.09349,2442.9,2442.8,6.4e-06]
[1730798678106,9.23832876,2442.9,2442.8,0.7753064]
[1730798678434,6.23832876,2442.9,2442.8,0.7753064]
[1730798679725,9.23832876,2442.9,2442.8,0.7753064]
[1730798680425,11.09964043,2442.9,2442.8,0.7753064]
[1730798681122,11.09976532,2442.9,2442.8,0.7753064]
[1730798681299,11.09970964,2442.9,2442.8,0.7753064]
[1730798681485,9.23839797,2442.9,2442.8,0.7753064]
[1730798681982,9.23840235,2442.9,2442.8,0.7753064]
[1730798686495,7.09349,2442.9,2442.8,0.7753064]
[1730798686704,9.23862688,2442.9,2442.8,0.7753064]
[1730798687803,9.23862688,2442.9,2442.8,6.4e-06]
[1730798688141,8.81945846,2442.9,2442.8,6.4e-06]
[1730798695275,8.81945846,2442.9,2442.8,0.7555064]
[1730798695276,9.23988056,2442.9,2442.8,0.7555064]
[1730798696559,10.59342405,2442.9,2442.8,0.7555064]
[1730798698857,8.44703349,2442.9,2442.8,0.7555064]
[1730798700358,8.44703349,2442.9,2442.8,6.4e-06]
[1730798700655,8.7404032,2442.9,2442.8,6.4e-06]
[1730798700819,11.31834246,2442.9,2442.8,6.4e-06]
[1730798701652,8.7404032,2442.9,2442.8,6.4e-06]
[1730798702239,9.2904032,2442.9,2442.8,6.4e-06]
[1730798702440,12.297999,2442.9,2442.8,6.4e-06]
[1730798710088,12.29968867,2442.9,2442.8,6.4e-06]
[1730798714710,12.30039771,2442.9,2442.8,6.4e-06]
[1730798718777,7.09349,2442.9,2442.8,6.4e-06]
[1730798718978,9.67303087,2442.9,2442.8,6.4e-06]
[1730798719401,8.44703349,2442.9,2442.8,6.4e-06]
[1730798719706,11.02653724,2442.9,2442.8,6.4e-06]
[1730798721022,9.67299375,2442.9,2442.8,0.7991064]
[1730798722073,11.02653724,2442.9,2442.8,0.7991064]
[1730798724118,11.02647832,2442.9,2442.8,0.7991064]
[1730798724919,12.83939638,2442.9,2442.8,0.7991064]
[1730798726418,11.02647832,2442.9,2442.8,0.7991064]
[1730798726814,9.67293483,2442.9,2442.8,0.7991064]
[1730798727136,6.24269581,2442.9,2442.8,0.7991064]
[1730798727295,4.09349,2442.9,2442.8,0.7991064]
[1730798727698,4.09349,2442.9,2442.8,0.87273106]
[1730798729805,8.18676,2443.0,2442.8,0.87273106]
[1730798730202,4.09335,2443.0,2442.8,0.87273106]
[1730798730433,4.09349,2442.9,2442.8,0.87273106]
[1730798731347,4.09335,2443.0,2442.8,0.87273106]
[1730798731555,8.18682,2443.0,2442.8,0.87273106]
[1730798731840,4.09349,2442.9,2442.8,0.87273106]
[1730798740459,4.09349,2442.9,2442.8,0.89333106]
[1730798742229,7.912173,2442.9,2442.8,0.07363106]
[1730798743434,7.09349,2442.9,2442.8,0.07363106]
[1730798743957,7.09349,2442.9,2442.8,0.87823106]
[1730798744348,4.09349,2442.9,2442.8,0.87823106]
[1730798748571,4.09346,2443.0,2442.8,0.87823106]
[1730798749268,4.09349,2442.9,2442.8,0.87823106]
[1730798750174,4.09333,2443.0,2442.8,0.87823106]
[1730798750332,8.1868,2443.0,2442.8,0.87823106]
[1730798750768,4.09349,2442.9,2442.8,0.87823106]
[1730798752049,4.09349,2442.9,2442.8,1.10240852]
[1730798753158,4.09334,2443.0,2442.8,1.10240852]
[1730798754338,4.09317,2443.1,2442.9,0.813]
[1730798756049,8.18645,2443.1,2442.9,0.813]
[1730798756446,4.09317,2443.1,2442.9,0.813]
[1730798756868,8.18648,2443.1,2442.9,0.813]
[1730798757178,4.09327,2443.1,2442.9,0.813]
[1730798757378,4.09332,2443.0,2442.9,0.813]
[1730798758435,4.09299,2443.2,2442.9,0.813]
[1730798758758,4.09299,2443.2,2443.1,0.7973]
[1730798759164,4.09299,2443.2,2443.1,0.8073]
[1730798763070,4.09282,2443.3,2443.1,0.8073]
[1730798765248,4.09274,2443.4,2443.1,0.8073]
[1730798765503,4.09282,2443.3,2443.2,0.24072787]
[1730798765823,4.09299,2443.2,2443.1,0.8073]
[1730798766179,4.09342,2443.0,2442.9,0.8272]
[1730798770476,4.09342,2443.0,2442.8,0.07363106]
[1730798772133,8.18643,2443.1,2442.8,0.07363106]
[1730798772335,4.09317,2443.1,2442.8,0.75600113]
[1730798772503,4.09341,2443.0,2442.8,0.07363106]
[1730798773634,4.09349,2442.9,2442.8,0.07363106]
[1730798779040,4.09341,2443.0,2442.8,0.07363106]
[1730798779400,4.09349,2442.9,2442.8,0.07363106]
[1730798780843,4.90749,2442.9,2442.8,0.07363106]
[1730798782316,5.80758,2442.9,2442.8,0.07363106]
[1730798786261,4.90749,2442.9,2442.8,0.07363106]
[1730798789641,4.09349,2442.9,2442.8,0.07363106]
[1730798789952,4.09349,2442.9,2442.8,0.85863106]
[1730798790656,4.09349,2442.9,2442.8,0.07363106]
[1730798794375,7.87789,2442.9,2442.8,0.07363106]
[1730798794676,9.28977631,2442.9,2442.8,0.07363106]
[1730798794979,11.43758717,2442.9,2442.8,0.07363106]
[1730798795535,9.28977631,2442.9,2442.8,0.07363106]
[1730798798977,8.50537631,2442.9,2442.8,0.07363106]
[1730798801459,4.09349,2442.9,2442.8,0.07363106]
[1730798801660,4.09349,2442.9,2442.8,0.82373106]
[1730798801895,4.09341,2443.0,2442.8,2.17727455]
[1730798802094,6.23967866,2443.2,2442.8,2.18727455]
[1730798802263,4.09312,2443.2,2442.9,0.42036579]
[1730798802465,8.18623,2443.2,2443.0,0.26076403]
[1730798802667,4.09311,2443.2,2443.0,0.26076403]
[1730798802999,4.09316,2443.1,2443.0,0.26076403]
[1730798803760,4.09316,2443.1,2442.8,2.17727455]
[1730798803761,4.09349,2442.9,2442.8,0.82373106]
[1730798803974,4.09349,2442.9,2442.8,0.07363106]
[1730798804159,4.09349,2442.9,2442.8,0.41225687]
[1730798804499,4.09349,2442.9,2442.8,0.07363106]
[1730798804860,4.09349,2442.9,2442.8,0.41226928]
[1730798805055,4.09349,2442.9,2442.8,0.07363106]
[1730798805256,4.09349,2442.9,2442.8,0.41225917]
[1730798807299,4.09335,2443.0,2442.8,0.41225917]
[1730798807300,4.09335,2443.0,2442.9,0.8226]
[1730798807463,4.09335,2443.0,2442.9,1.16122811]
[1730798808301,4.09335,2443.0,2442.9,0.8226]
[1730798809795,4.09318,2443.1,2442.8,0.07363106]
[1730798809998,4.09349,2442.9,2442.8,0.07363106]
[1730798810194,4.09349,2442.9,2442.8,0.41224058]
[1730798810504,4.989503,2442.9,2442.8,0.07363106]
[1730798810662,8.762803,2442.9,2442.8,0.07363106]
[1730798811075,10.90985035,2442.9,2442.8,0.07363106]
[1730798813278,10.91095953,2442.9,2442.8,0.07363106]
[1730798814529,12.69413432,2442.9,2442.8,0.07363106]
[1730798814690,10.11634649,2442.9,2442.8,1.06e-06]
[1730798815315,10.66634649,2442.9,2442.8,1.06e-06]
[1730798815503,4.09483,2442.1,2442.0,0.33870197]
[1730798815702,4.92133,2441.8,2441.7,0.75275475]
[1730798816599,7.92133,2441.8,2441.7,0.75275475]
[1730798816915,9.88263724,2441.8,2441.7,0.75275475]
[1730798818733,7.09533,2441.8,2441.7,0.75275475]
[1730798818940,4.09502,2442.0,2441.7,0.75275475]
[1730798819238,4.09495,2442.1,2441.8,0.0518244]
[1730798819733,4.09495,2442.1,2441.8,0.0618244]
[1730798819898,4.09495,2442.1,2441.9,0.8117]
[1730798820325,4.09466,2442.2,2441.9,0.8117]
[1730798820839,4.09443,2442.4,2442.2,0.8117]
[1730798821213,4.09447,2442.4,2442.2,0.8117]
[1730798821428,4.09428,2442.5,2442.2,0.8117]
[1730798821609,8.18766,2442.7,2442.2,0.8117]
[1730798821981,4.0945,2442.3,2442.2,0.8117]
[1730798822453,4.991766,2442.7,2441.9,0.8217]
[1730798822454,4.09492,2442.1,2441.9,0.8217]
[1730798822645,4.095,2442.0,2441.9,0.8117]
[1730798822954,4.09517,2441.9,2441.8,0.0518244]
[1730798825340,4.992437,2441.9,2441.8,0.0518244]
[1730798826354,4.09517,2441.9,2441.8,0.0518244]
[1730798831747,4.88427,2441.9,2441.8,0.0518244]
[1730798831949,7.88427,2441.9,2441.8,0.0518244]
[1730798840265,7.09517,2441.9,2441.8,0.0518244]
[1730798841169,7.90187,2441.9,2441.8,0.0518244]
[1730798841370,9.4160523,2441.9,2441.8,0.0518244]
[1730798847705,8.6093523,2441.9,2441.8,0.0518244]
[1730798854817,7.09517,2441.9,2441.8,0.0518244]
[1730798860396,9.24107852,2441.9,2441.8,0.0518244]
[1730798861496,10.05567852,2441.9,2441.8,0.0518244]
[1730798861789,7.90977,2441.9,2441.8,0.0518244]
[1730798863593,10.05684282,2441.9,2441.8,0.0518244]
[1730798863806,11.72967584,2441.9,2441.8,0.0518244]
[1730798864880,11.72964619,2441.9,2441.8,0.0518244]
[1730798865323,9.58260302,2441.9,2441.8,0.0518244]
[1730798868344,12.15905483,2441.9,2441.8,0.0518244]
[1730798869200,12.15905483,2441.9,2441.8,4.4e-06]
[1730798869503,9.58260302,2441.9,2441.8,4.4e-06]
[1730798870065,11.05805301,2441.7,2441.6,8e-07]
[1730798870341,13.50610321,2441.7,2441.6,8e-07]
[1730798872900,9.5435502,2441.7,2441.6,8e-07]
[1730798873104,12.12269679,2441.7,2441.6,8e-07]
[1730798873839,12.12263233,2441.7,2441.6,8e-07]
[1730798874141,9.5435502,2441.7,2441.6,8e-07]
[1730798876508,10.3223502,2441.7,2441.6,8e-07]
[1730798877317,13.46730321,2441.7,2441.6,8e-07]
[1730798877826,16.47620485,2441.7,2441.6,8e-07]
[1730798878021,13.46730321,2441.7,2441.6,8e-07]
[1730798879124,16.47669189,2441.7,2441.6,8e-07]
[1730798880336,13.46730321,2441.7,2441.6,8e-07]
[1730798880916,10.3223502,2441.7,2441.6,8e-07]
[1730798882212,12.9008837,2441.7,2441.6,8e-07]
[1730798883315,12.12194954,2441.7,2441.6,8e-07]
[1730798887462,9.5435502,2441.7,2441.6,8e-07]
[1730798888257,10.3368502,2441.7,2441.6,8e-07]
[1730798888559,12.91485082,2441.7,2441.6,8e-07]
[1730798888724,10.3368502,2441.7,2441.6,8e-07]
[1730798889445,13.48180321,2441.7,2441.6,8e-07]
[1730798890081,16.05973186,2441.7,2441.6,8e-07]
[1730798890984,16.05975495,2441.7,2441.6,8e-07]
[1730798891285,13.48180321,2441.7,2441.6,8e-07]
[1730798892968,19.03180321,2441.7,2441.6,8e-07]
[1730798893306,20.16537859,2441.7,2441.6,8e-07]
[1730798893592,23.28511271,2441.7,2441.6,8e-07]
[1730798894262,19.73214906,2441.7,2441.6,8e-07]
[1730798894465,23.28511271,2441.7,2441.6,8e-07]
[1730798894671,19.15214771,2441.7,2441.6,8e-07]
[1730798895462,19.58765117,2441.7,2441.6,8e-07]
[1730798895828,23.14061482,2441.7,2441.6,8e-07]
[1730798896192,19.58765117,2441.7,2441.6,8e-07]
[1730798898172,20.13740771,2441.7,2441.6,8e-07]
[1730798900257,20.01570609,2441.7,2441.6,8e-07]
[1730798902602,17.4429805,2441.7,2441.6,8e-07]
[1730798902906,14.46213206,2441.7,2441.6,8e-07]
[1730798903065,13.48407714,2441.7,2441.6,8e-07]
[1730798903401,10.48407714,2441.7,2441.6,8e-07]
[1730798903911,7.3368502,2441.7,2441.6,8e-07]
[1730798904201,10.48407714,2441.7,2441.6,8e-07]
[1730798904635,13.48407714,2441.7,2441.6,8e-07]
[1730798904833,9.67138524,2441.7,2441.6,8e-07]
[1730798905122,4.0955,2441.7,2441.6,8e-07]
[1730798906420,7.0955,2441.7,2441.6,8e-07]
[1730798906784,10.24272694,2441.7,2441.6,8e-07]
[1730798906984,15.04359675,2441.7,2441.6,8e-07]
[1730798907185,12.46715403,2441.7,2441.6,8e-07]
[1730798908187,15.04394221,2441.7,2441.6,8e-07]
[1730798908392,12.46715403,2441.7,2441.6,8e-07]
[1730798910202,10.24272694,2441.7,2441.6,8e-07]
[1730798910508,4.0955,2441.7,2441.6,0.8134008]
[1730798911615,7.0955,2441.7,2441.6,0.8134008]
[1730798911891,9.67281232,2441.7,2441.6,0.8134008]
[1730798912136,9.67281232,2441.7,2441.6,8e-07]
[1730798914650,7.0955,2441.7,2441.6,8e-07]
[1730798914811,9.67404091,2441.7,2441.6,8e-07]
[1730798915895,7.0955,2441.7,2441.6,8e-07]
[1730798916028,9.67426901,2441.7,2441.6,8e-07]
[1730798918360,9.67426901,2441.7,2441.6,0.8207008]
[1730798918568,7.0955,2441.7,2441.6,0.8207008]
[1730798920279,9.24388415,2441.7,2441.6,0.8207008]
[1730798920598,9.24387266,2441.7,2441.6,0.8207008]
[1730798920741,7.0955,2441.7,2441.6,0.8207008]
[1730798921173,9.24388047,2441.7,2441.6,0.8207008]
[1730798922073,9.24368175,2441.7,2441.6,0.86563858]
[1730798922285,4.0955,2441.7,2441.6,0.86563858]
[1730798922884,4.09536,2441.8,2441.6,0.86563858]
[1730798923421,4.09518,2441.9,2441.8,0.784]
[1730798923684,4.0951,2442.0,2441.8,0.784]
[1730798923838,8.19025,2442.0,2441.8,0.784]
[1730798924038,4.09517,2441.9,2441.8,0.784]
[1730798927597,7.09517,2441.9,2441.8,0.784]
[1730798928257,7.09517,2441.9,2441.6,0.79663858]
[1730798928258,4.0955,2441.7,2441.6,0.79663858]
[1730798928797,7.0955,2441.7,2441.6,0.79663858]
[1730798933440,4.0955,2441.7,2441.6,0.79663858]
[1730798936343,7.0955,2441.7,2441.6,0.79663858]
[1730798940223,7.0955,2441.7,2441.6,0.04493858]
[1730798944955,9.77976481,2441.7,2441.6,0.04493858]
[1730798947067,8.97396481,2441.7,2441.6,0.04493858]
[1730798947310,7.0955,2441.7,2441.6,0.04493858]
[1730798948920,7.0955,2441.7,2441.6,0.84423858]
[1730798950188,8.81253861,2441.7,2441.6,0.84423858]
[1730798950923,7.0955,2441.7,2441.6,0.84423858]
[1730798952417,8.81253861,2441.7,2441.6,0.84423858]
[1730798958328,8.81253861,2441.7,2441.6,1.18379027]
[1730798959023,8.81253861,2441.7,2441.6,0.84423858]
[1730798959418,9.24174684,2441.7,2441.6,0.04493858]
[1730798959836,11.1204403,2441.7,2441.6,0.04493858]
[1730798960315,8.97419346,2441.7,2441.6,0.04493858]
[1730798960515,11.12325341,2441.7,2441.6,0.04493858]
[1730798961116,8.97419346,2441.7,2441.6,0.04493858]
[1730798961321,11.12341888,2441.7,2441.6,0.04493858]
[1730798961634,10.32885124,2441.7,2441.6,0.04493858]
[1730798961839,13.68734745,2441.7,2441.6,0.04493858]
[1730798962193,11.11185124,2441.7,2441.6,0.04493858]
[1730798962441,13.69140326,2441.7,2441.6,0.04493858]
[1730798962654,11.11185124,2441.7,2441.6,0.04493778]
[1730798962812,14.1213286,2441.7,2441.6,8.58e-06]
[1730798967029,14.1193967,2441.7,2441.6,8.58e-06]
[1730798968594,11.11185124,2441.7,2441.6,8.58e-06]
[1730798969651,12.46650902,2441.7,2441.6,8.58e-06]
[1730798970056,16.02405448,2441.7,2441.6,8.58e-06]
[1730798971172,13.02650902,2441.7,2441.6,8.58e-06]
[1730798972178,13.58008305,2441.7,2441.6,8.58e-06]
[1730798976040,16.04208305,2441.7,2441.6,8.58e-06]
[1730798977504,16.47014831,2441.7,2441.6,8.58e-06]
[1730798982078,17.00636062,2441.7,2441.6,8.58e-06]
[1730798982408,7.09718,2440.7,2440.6,0.8204]
[1730798982575,8.45183778,2440.7,2440.6,0.8204]
[1730798987083,4.09755,2440.5,2440.4,0.81]
[1730798987269,7.09755,2440.5,2440.4,0.81]
[1730798987904,8.45220778,2440.5,2440.4,0.81]
[1730798988275,7.09755,2440.5,2440.4,0.81]
[1730798994511,4.09768,2440.4,2440.3,0.0599964]
[1730798995016,7.09768,2440.4,2440.3,0.0599964]
[1730799001283,4.09768,2440.4,2440.3,0.8387964]
[1730799001485,4.09768,2440.4,2440.3,1.17833792]
[1730799002754,4.09768,2440.4,2440.3,0.8387964]
[1730799003319,4.09768,2440.4,2440.3,1.17842662]
[1730799004154,4.09768,2440.4,2440.3,0.8387964]
[1730799004448,4.09768,2440.4,2440.3,1.17846292]
[1730799004658,4.09768,2440.4,2440.3,1.17847488]
[1730799004827,6.06894723,2440.7,2440.3,1.17847488]
[1730799004828,4.71428945,2440.7,2440.3,1.17847488]
[1730799005156,4.0971,2440.8,2440.5,0.812]
[1730799005361,4.09729,2440.7,2440.6,1.09916524]
[1730799005655,4.0971,2440.8,2440.7,0.7596]
[1730799005858,4.0971,2440.8,2440.7,0.33956524]
[1730799006158,4.0971,2440.8,2440.7,1.10706524]
[1730799006654,4.09619,2441.3,2441.0,0.7798]
[1730799006955,2.14380445,2441.6,2441.2,0.7798]
[1730799006956,4.09602,2441.4,2441.2,0.7798]
[1730799007158,8.19215,2441.4,2441.2,0.7798]
[1730799007464,8.19215,2441.4,2441.3,1.33317262]
[1730799007465,4.09602,2441.4,2441.3,1.33317262]
[1730799007760,4.09579,2441.6,2441.4,0.785]
[1730799007761,4.0957,2441.6,2441.4,0.785]
[1730799007919,4.0957,2441.6,2441.5,1.12387698]
[1730799008438,4.0955,2441.7,2441.6,0.785]
[1730799008810,5.80896945,2442.2,2441.7,0.01]
[1730799009053,4.09468,2442.2,2441.9,0.785]
[1730799009359,4.095,2442.0,2441.9,0.785]
[1730799010128,4.09468,2442.2,2441.9,0.785]
[1730799010329,4.09486,2442.1,2441.9,0.785]
[1730799010760,4.09468,2442.2,2441.9,0.785]
[1730799010944,4.09468,2442.2,2442.0,0.08189204]
[1730799011245,4.09468,2442.2,2442.0,0.785]
[1730799011630,4.09454,2442.3,2442.1,0.01]
[1730799012234,4.09443,2442.4,2442.1,0.01]
[1730799012435,4.09466,2442.2,2442.1,0.01]
[1730799013329,4.09443,2442.4,2442.1,0.01]
[1730799013330,4.09455,2442.3,2442.1,0.01]
[1730799015745,0.7583,2443.0,2442.0,0.785]
[1730799015746,4.09483,2442.1,2442.0,0.785]
[1730799016379,4.09532,2441.9,2441.8,0.7855]
[1730799016947,4.09562,2441.7,2441.6,0.7592]
[1730799017503,4.09601,2441.4,2441.1,0.02]
[1730799017792,8.19218,2441.4,2441.1,0.02]
[1730799017947,8.19218,2441.4,2441.2,0.7507]
[1730799018286,4.09601,2441.4,2441.2,0.7507]
[1730799018591,8.19211,2441.4,2441.2,0.7507]
[1730799019385,4.09535,2441.8,2441.2,0.7507]
[1730799019386,4.09578,2441.6,2441.2,0.7507]
[1730799019586,4.09578,2441.6,2441.4,0.7625]
[1730799020574,8.19154,2441.6,2441.4,0.7625]
[1730799020748,4.09584,2441.5,2441.4,0.7625]
[1730799021379,4.09576,2441.6,2441.4,0.7625]
[1730799021845,8.19159,2441.6,2441.4,0.7625]
[1730799022050,4.09576,2441.6,2441.4,0.7625]
[1730799022286,4.09584,2441.5,2441.4,0.7625]
[1730799022982,4.09576,2441.6,2441.4,0.7625]
[1730799023354,8.19156,2441.6,2441.4,0.7625]
[1730799023606,4.09576,2441.6,2441.4,0.7625]
[1730799025252,8.19154,2441.6,2441.4,0.7625]
[1730799025455,4.09584,2441.5,2441.4,0.7625]
[1730799025690,4.09627,2441.3,2441.2,0.794]
[1730799025859,0.81916,2441.5,2441.0,0.8302]
[1730799025860,4.09651,2441.1,2441.0,0.8302]
[1730799026192,4.09685,2440.9,2440.8,0.8302]
[1730799028289,4.09685,2440.9,2440.6,0.7799]
[1730799028491,4.09718,2440.7,2440.6,1.11641088]
[1730799028699,4.0971,2440.8,2440.6,1.11641088]
[1730799029197,4.0971,2440.8,2440.6,0.7799]
[1730799029697,8.19426,2440.8,2440.6,0.7799]
[1730799029897,4.09718,2440.7,2440.6,0.7799]
[1730799031001,4.0971,2440.8,2440.6,0.7799]
[1730799031375,8.19426,2440.8,2440.6,0.7799]
[1730799031777,4.0971,2440.8,2440.6,0.7799]
[1730799031988,8.19427,2440.8,2440.6,0.7799]
[1730799032361,8.19427,2440.8,2440.7,0.03870582]
[1730799032362,4.0971,2440.8,2440.7,0.03870582]
[1730799033160,4.09752,2440.5,2440.4,0.8068]
[1730799033457,4.09752,2440.5,2440.4,1.18349053]
[1730799033704,4.09752,2440.5,2440.4,0.37669053]
[1730799036703,4.09752,2440.5,2440.4,0.37687145]
[1730799037005,4.09735,2440.6,2440.4,0.37687145]
[1730799037216,4.09735,2440.6,2440.5,0.33816563]
[1730799037505,4.09735,2440.6,2440.3,0.0599964]
[1730799037506,4.09768,2440.4,2440.3,0.0599964]
[1730799037863,8.19519,2440.5,2440.3,0.8400964]
[1730799038064,8.19512,2440.5,2440.3,0.8400964]
[1730799038464,4.09752,2440.5,2440.3,0.8400964]
[1730799038864,4.09677,2441.0,2440.3,0.8400964]
[1730799038865,5.81976945,2441.8,2440.3,0.14194463]
[1730799039098,4.09752,2440.5,2440.4,1.13108035]
[1730799039295,4.09752,2440.5,2440.4,0.7931]
[1730799039710,8.1948,2440.6,2440.4,0.7931]
[1730799039911,4.09752,2440.5,2440.4,0.7931]
[1730799040589,4.09737,2440.6,2440.4,1.13111753]
[1730799040795,4.09737,2440.6,2440.4,0.7931]
[1730799041702,4.09737,2440.6,2440.4,1.34429608]
[1730799041865,4.09714,2440.8,2440.4,0.7931]
[1730799042198,4.09735,2440.6,2440.4,0.7931]
[1730799042409,4.0973,2440.7,2440.5,0.33813074]